Cogmind - Beta 13 @@@ ROGUE MODE // 2024.04.03 @ 14:59:18 // Winter2019/RPGLIKE Player: Luminiferous Result: Destroyed by Y-45 Defender with Heavy Assault Rifle Performance ------------- Evolutions (0) 0 Regions Visited (2) 400 Robots Destroyed (14) 70 Value Destroyed (376) 376 Prototype IDs (0) 0 Alien Tech Used (0) 0 Bonus (0) 0 TOTAL SCORE: 846 Bonus ------- None Cogmind --------- Core Integrity 0/600 Matter 258/300 Energy 247/250 System Corruption 0% Temperature Cool (29) Movement Treading (160) Location -10/Mines Parts ------- > --- POWER (1) -------- Ion Engine > --- PROPULSION (2) --- Light Treads Light Treads > --- UTILITY (2) ------ Weight Redist. System Structural Scanner > --- WEAPON (2) ------- Assault Rifle Light Cannon > --- INVENTORY (3) ---- Light Ion Engine Grenade Launcher Peak State ------------ > --- POWER ------------ Ion Engine > --- PROPULSION ------- Light Treads Compact Wheel > --- UTILITY ---------- Weight Redist. System Structural Scanner > --- WEAPON ----------- Assault Rifle Light Cannon > --- INVENTORY -------- Light Ion Engine Grenade Launcher [Rating: 8] Favorites ----------- Power Ion Engine Engine Ion Engine Propulsion Light Treads Treads Light Treads Leg Aluminum Leg Wheel Compact Wheel Utility Structural Scanner Device Structural Scanner Weapon Assault Rifle Energy Gun Small Laser Ballistic Gun Assault Rifle Ballistic Cannon Light Cannon Build | -11 -10 -10 ------- Run | Yrd Mat Min Slots Evolved 3 | 3 . . Power . | . . . Propulsion 1 | 1 . . Utility 1 | 1 . . Weapon 1 | 1 . . Parts Attached 14 | 3 10 1 Power . | . . . Engine . | . . . Core . | . . . Reactor . | . . . Propulsion 6 | 2 3 1 Treads 3 | . 2 1 Leg . | . . . Wheel 3 | 2 1 . Hover . | . . . Flight . | . . . Utility 3 | . 3 . Device 3 | . 3 . Storage . | . . . Processor . | . . . Hackware . | . . . Protection . | . . . Artifact . | . . . Weapon 5 | 1 4 . Energy Gun 1 | . 1 . Energy Cannon . | . . . Ballistic Gun 3 | 1 2 . Ballistic Cannon 1 | . 1 . Launcher . | . . . Special Weapon . | . . . Impact Weapon . | . . . Slashing Weapon . | . . . Piercing Weapon . | . . . Special Melee Weapon . | . . . Unidentified Prototypes . | . . . Parts Lost . | . . . Power . | . . . Propulsion . | . . . Utility . | . . . Weapon . | . . . Highest Loss Streak . | . . . To Critical Strikes . | . . . Average Slot Usage (%) 90 | . 85 99 Engine 14 | . 14 14 Treads 14 | . 8 25 Wheel 13 | . 19 2 Device 19 | . 14 28 Energy Gun 2 | . 4 . Ballistic Gun 14 | . 15 14 Ballistic Cannon 10 | . 8 14 Naked Turns . | . . . Heaviest Build 12 | 7 12 11 Greatest Support 46 | 32 32 46 Greatest Overweight (x) . | . . . Average Overweight (x) . | . . . Largest Inventory Capacity 3 | 3 3 3 Average Capacity 3 | 3 3 3 Most Carried 3 | 3 3 3 Average Carried 2 | 1 2 2 Final Capacity 3 | 3 3 3 Final Carried 3 | 3 2 2 Class Distribution -------------------- 100% | Mutant Dominant Class ---------------- Mutant | -10/Materials Mutant | -10/Mines Resources | -11 -10 -10 ----------- Run | Yrd Mat Min Matter Collected 570 | 200 346 24 Remotely . | . . . Salvage Created 493 | . 414 79 Parts 28 | . 23 5 Haulers Intercepted 1 | . 1 . Recyclers Shooed 1 | . 1 . Parts Field Recycled . | . . . Retrieved Matter . | . . . Parts Self-Destructed . | . . . Prevented . | . . . Kills | -11 -10 -10 ------- Run | Yrd Mat Min Combat Hostiles Destroyed 12 | . 11 1 Guns 7 | . 7 . Cannons 5 | . 4 1 Classes Destroyed 5 | . 3 2 Worker 1 | . . 1 Hauler 1 | . 1 . Swarmer 3 | . 3 . Grunt 8 | . 8 . Sentry 1 | . . 1 Best Kill Streak 4 | . 4 2 Combat Bots Only 4 | . 4 1 Max Kills in Single Turn 1 | . 1 1 Gunslinging . | . . . Exploded . | . . . Melee . | . . . Uniques/NPCs Destroyed . | . . . Combat | -11 -10 -10 -------- Run | Yrd Mat Min Hostile Shots Fired 93 | . 75 18 Missed 21 | . 14 7 Damage Taken 876 | . 713 163 Core 703 | . 571 132 Absorbed by Shields . | . . . Redirected to Core 565 | . 451 114 Core Remaining (%) 100 | 100 . . Volleys Fired 51 | . 45 6 Largest 2 | . 2 2 Hottest 60 | . 60 55 Shots Fired 102 | . 90 12 Gun 73 | . 67 6 Cannon 29 | . 23 6 Launcher . | . . . Special . | . . . Kinetic 90 | . 78 12 Thermal 12 | . 12 . Explosive . | . . . Electromagnetic . | . . . Robot Hit Streak 12 | . 12 3 Robot Miss Streak 5 | . 5 2 Penetration Max . | . . . Secondary Targets . | . . . Shots Hit Robots 68 | . 60 8 Core Hits 24 | . 21 3 Critical Kills . | . . . Critical Parts Destroyed . | . . . Critical Strikes 3 | . 1 2 Blast 3 | . 1 2 Melee Attacks . | . . . Impact . | . . . Slashing . | . . . Piercing . | . . . Sneak Attacks . | . . . Combat Hostiles . | . . . Follow-up Attacks . | . . . Damage Inflicted 970 | . 818 152 Guns 606 | . 560 46 Cannons 363 | . 257 106 Explosions . | . . . Melee . | . . . Ramming 1 | . 1 . Kinetic 857 | . 705 152 Thermal 112 | . 112 . Explosive . | . . . Electromagnetic . | . . . Impact . | . . . Slashing . | . . . Piercing . | . . . Highest Corruption . | . . . Average Corruption . | . . . Corruption Purged . | . . . Corruption Blocked . | . . . Overload Shots . | . . . Overflow Damage . | . . . Projectiles . | . . . Explosions . | . . . Melee . | . . . Knockbacks 3 | . 3 . Impact . | . . . Kinetic 3 | . 3 . Secondary . | . . . Self-Inflicted Damage . | . . . Shots . | . . . Rammed 1 | . 1 . Targets Rammed 1 | . 1 . Kicked . | . . . Crushed . | . . . Highest Temperature 216 | . 216 25 Average Temperature 53 | . 56 21 Received Heat Transfer 429 | . 357 72 Siege Activations . | . . . Robots Corrupted . | . . . Combat Hostiles . | . . . Parts Fried . | . . . Impact Corruptions . | . . . Robots Melted . | . . . Combat Hostiles . | . . . Parts Melted . | . . . Heat Transferred 250 | . 250 . Parts Sabotaged . | . . . Parts Stolen . | . . . Parts Stripped . | . . . Power Chain Reactions . | . . . Alert | -11 -10 -10 ------- Run | Yrd Mat Min Peak Influence 263 | . 263 40 Initial 33 | . . 33 Average 73 | . 99 28 Maximum Alert Level 1 | . 1 . Low Security (%) 93 | 100 89 100 Level 1 6 | . 10 . Level 2 . | . . . Level 3 . | . . . Level 4 . | . . . Level 5 . | . . . High Security . | . . . Max Security . | . . . Squads Dispatched 2 | . 2 . Investigation 1 | . 1 . Extermination . | . . . Reinforcement 1 | . 1 . Assault . | . . . Garrison . | . . . Intercept . | . . . Searches Triggered . | . . . Construction Impeded . | . . . Haulers Reinforced . | . . . Active Scanning Responses . | . . . Cargo Convoy Interrupts . | . . . Stealth | -11 -10 -10 --------- Run | Yrd Mat Min Distress Signals 1 | . 1 . Communications Jammed . | . . . Distress Signals . | . . . Times Spotted 24 | . 22 2 Peak Tracking Total 6 | . 6 2 Tactical Retreats . | . . . Traps | -11 -10 -10 ------- Run | Yrd Mat Min Traps Triggered 1 | . 1 . Indirectly . | . . . Trap Hack Attempts . | . . . Triggered . | . . . Disarmed . | . . . Reprogrammed . | . . . Reused . | . . . Traps Extracted . | . . . Installed . | . . . Triggered . | . . . Machines | -11 -10 -10 ---------- Run | Yrd Mat Min Machines Disabled . | . . . Max in Single Turn . | . . . Machines Repaired . | . . . Machines Dismantled . | . . . Machines Sabotaged . | . . . Overloaded Fab Kills . | . . . Hacking | -11 -10 -10 --------- Run | Yrd Mat Min Machines Accessed 4 | . 4 . Terminals 4 | . 4 . Fabricators . | . . . Repair Stations . | . . . Recycling Units . | . . . Scanalyzers . | . . . Garrison Access . | . . . Total Hacks 10 | . 10 . Successful 6 | . 6 . Failed 4 | . 4 . Catastrophic . | . . . Database Lockouts . | . . . Manual 10 | . 10 . Terminals 10 | . 10 . Fabricators . | . . . Repair Stations . | . . . Recycling Units . | . . . Scanalyzers . | . . . Garrison Access . | . . . Terminal Hacks 2 | . 2 . Terminal Index 1 | . 1 . Hauler Manifests 1 | . 1 . Fabricator Hacks . | . . . Repair Station Hacks . | . . . Recycling Unit Hacks . | . . . Scanalyzer . | . . . Garrison Access Hacks . | . . . Unauthorized Hacks 4 | . 4 . Terminals 4 | . 4 . Botnet 4 | . 4 . Fabricators . | . . . Repair Stations . | . . . Recycling Units . | . . . Scanalyzers . | . . . Garrison Access . | . . . Data Cores Recovered . | . . . Used . | . . . Hacking Detections 4 | . 4 . Full Trace Events . | . . . Feedback Events . | . . . Feedback Blocked . | . . . Robot Schematics Acquired . | . . . Robots Built . | . . . Authchips . | . . . Time . | . . . Total Robot Build Rating . | . . . Part Schematics Acquired . | . . . Parts Built . | . . . Authchips . | . . . Time . | . . . Total Part Build Rating . | . . . Parts Repaired . | . . . Time . | . . . Parts Recycled . | . . . Recycled Matter . | . . . Retrieved Matter . | . . . Retrieved Components . | . . . Parts Scanalyzed . | . . . Part Schematics Acquired . | . . . Parts Damaged . | . . . Bothacking | -11 -10 -10 ------------ Run | Yrd Mat Min Used RIF Installer . | . . . Robots Hacked . | . . . Non-combat . | . . . Combat . | . . . Robot Hacks Applied . | . . . Relay Couplers Released . | . . . Fabnet Peak Effective % . | . . . Robots Rewired . | . . . Allies Hacked . | . . . Hacks Repelled . | . . . Allies | -11 -10 -10 -------- Run | Yrd Mat Min Total Allies . | . . . Largest Group . | . . . Highest-Rated Group . | . . . Highest-Rated Ally . | . . . Total Orders . | . . . Ally Attacks . | . . . Total Damage . | . . . Kills . | . . . Allies Corrupted . | . . . Allies Melted . | . . . Intel | -11 -10 -10 ------- Run | Yrd Mat Min Robot Analysis Total . | . . . Derelict Logs Recovered 3 | . . 3 Drone Launches . | . . . Drone Recoveries . | . . . Exploration | -11 -10 -10 ------------- Run | Yrd Mat Min Turns Passed 1433 | 18 920 495 Spaces Moved 901 | 9 599 293 Core . | . . . Treads 521 | . 228 293 Legs 2 | 2 . . Wheels 378 | 7 371 . Hover . | . . . Flight . | . . . Fastest Speed 100 | 100 100 160 Average Speed 134 | 104 122 160 Slowest Speed 160 | 120 160 160 Overloaded Moves . | . . . Propulsion Burnouts . | . . . Robots Hopped . | . . . Cave-ins Triggered . | . . . Exploration Rate (%) 47 | 2 88 51 Regions Visited 2 Branch Regions 1 Pre-discovered Areas 1 | . . 1 Known Exits Taken . | . . . Unknown Exits Taken 2 | 1 1 . Scrap Searched 1 | . . 1 Spaces Dug . | . . . Terrain Destroyed . | . . . Melee . | . . . Projectile . | . . . AOE . | . . . Terrain Rammed . | . . . Walls Destroyed . | . . . Machines Disabled . | . . . Actions | -11 -10 -10 --------- Run | Yrd Mat Min Total 1026 | 18 698 310 Wait 31 | . 23 8 Move 899 | 8 598 293 Hop . | . . . Pick Up 14 | 6 7 1 Fast Attach 3 | . 3 . Attach 7 | 3 3 1 Detach . | . . . Swap 4 | . 4 . Drop 12 | 1 10 1 Fire 51 | . 45 6 Melee . | . . . Ram 1 | . 1 . Kick . | . . . Crush . | . . . Escape Stasis . | . . . Rewire . | . . . Trap . | . . . Miscellaneous 4 | . 4 . Route ------- -11/Scrapyard -10/Materials (discovered 3 exits: [*Mat x2] / [*Min]) -10/Mines (discovered 1 exit: [*Mat]) History --------- Turn | Location | Event 1 | -11/Scrapyard | Upgraded with Propulsion slot (x1) 1 | -11/Scrapyard | Upgraded with Utility slot (x1) 1 | -11/Scrapyard | Upgraded with Weapon slot (x1) 1 | -11/Scrapyard | Discovered new exit (range 1) 19 | -11/Scrapyard | Entered Materials 302 | -10/Materials | Discovered new exit (range 3) 317 | -10/Materials | Build established: Mutant 318 | -10/Materials | Core integrity fell below 50% 385 | -10/Materials | Discovered new exit (range 12) 562 | -10/Materials | Discovered new exit (range 12) 939 | -10/Materials | Entered Mines 941 | -10/Mines | Reached level 2 951 | -10/Mines | Learned location of Mines (-9) 962 | -10/Mines | Discovered new exit (range 15) 970 | -10/Mines | A weapon hastily lodged in a ceiling crevice suddenly fell to the ground 991 | -10/Mines | Learned Materials stockpile data 1104 | -10/Mines | Learned Materials emergency access door positions 1406 | -10/Mines | Core integrity fell below 20% 1434 | -10/Mines | Destroyed by Y-45 Defender with Heavy Assault Rifle Last Messages --------------- 01015_ Searching scrap... 01015_ Found Hammer. 01015_ Found Lgt. Treads. 01015_ Found 27 Matter. 01016_ Acquired 14 matter. 01018_ Dropped Com. Wheel. 01018_ Acquired Lgt. Treads. 01027_ Acquired 10 matter. 01028_ R-06 Scavenger collects Com. Wheel. 01104_ Acquired derelict log, extracted data. Data stored: Materials emergency access points. 01407_ K-01 Serf collects debris. 01422_ Y-45 Defender destroyed. 01422_ K-01 Serf collects debris. 01425_ K-01 Serf suffers critical hit (Blast). 01425_ K-01 Serf destroyed. 01426_ K-01 Serf collects debris. 01426_ Critical hit (Burn: +37). 01428_ Y-45 Defender Lgt. Treads blasted off. 01430_ K-01 Serf collects debris. Map ----- +----------------------------------------------------+ | | | | | | | | | | | ?######???????????????????????????????????? | | ################??????????????????????????? | | ### ############?????????????????????????? | | ## ### ###?????????????????????????? | | ### ##?????????????????????????? | | ##### ##?????????????????????????? | | ?####### ##########??????????????????? | | ???###### ###########??????????????????? | | ??????### ##??????????????????? | | ???###### """ ####### ###?????????????????? | | ??###### """ ####### ###?????????????????? | | ??### """ #### ##?????????????????? | | ??## #### ##?????????????????? | | ??## ####### ##?????????????????? | | ??## ######## """##?????????????????? | | ??### ####???## """##?????????????????? | | ??### ####????## """##?????????????????? | | ???## ####??##### ######?????????????? | | ???## ###??##################????????????? | | ???## ##???### #####" "###????????????? | | ???## ##???## @###![ !!##????????????? | | ???## ##???## ## / /]##????????????? | | ???## ##???## ## ###????????????? | | ???## ##???## Y##++####????????????? | | ??### ##???### k[= ###???????????? | | ?#### ######## % !% ####??????????? | | ?### ####### %! ###??????????? | | ?## #### =%= ####????????? | | ?## ## ## ##????????? | | ?### ### t#### ?????? | | ?#### #### ######## ####?????? | | ??#### ##### ###?##### #####?????? | | ???#### ##### ##?????#######???????? | | ????#### ###?## ####????#####????????? | | ?????#### #####?## #####????????????????? | | ??????#########??## ###????????????????? | | ???????######???### ########??????????? | | ????????????????### ########??????????? | | ????????????????## ## ##??????????? | | ????????????????## ##??????????? | | ????????????????## ##??????????? | | ????????????????## ###??????????? | | ????????????????## ##############???? | | ???????????????### ###############???? | | ??????????????#### #### ###### | +----------------------------------------------------+ Best States ------------- Heat Dissipation 25 Energy Generation 10 Energy Capacity 250 Matter Stores 300 Matter Capacity 300 Sight Range 16 Terrain Scan Density 10 Additional Mass Support 6 Evasion (%) 40 Recoil Reduction 2 Item Schematics ----------------- None Robot Schematics ------------------ None Fabricated ------------ Nothing Alien Tech Used ----------------- None Achievements -------------- None Challenges ------------ None RPGLIKE | -11 -10 -10 --------- Run | Yrd Mat Min Levels Raised 1 | . . 1 XP Earned 5055 | 3000 1455 600 XP Spent 3000 | 3000 . . Upgrades 6 | 6 . . Propulsion Slot 1 | 1 . . Utility Slot 1 | 1 . . Weapon Slot 1 | 1 . . Inventory Capacity 3 | 3 . . Protomatter Created 70 | . 70 . Integrity Restored 93 | . 93 . Core 93 | . 93 . Protomatter Decayed 8 | . 8 . Game ------ Seed DeepDisruptionPerforator Manual? 0 Play Time 00:13:57 Cumulative 9.8 hours Start 2024.04.03 @ 14:37:50 End 2024.04.03 @ 14:59:18 Sessions 1 Manual Loads 0 Difficulty Rogue Special Mode Winter2019/RPGLIKE Game No. 42 Rogue 42 Adventurer 0 Explorer 0 Win Type - Total 0 Types 0/0/0/0/0/0/0/0/0 Lore% 15 Gallery% 21 Achievement% 47 Wizard Run 0 Options --------- Layout 2 ASCII 0 Keyboard 0 Movement Mouse Keybinds 1 Fullscreen 2 Font 24/Smallcaps Map View 50x44 Zoom Use 0% Tactical HUD 1 Map Filters NONE Filters NONE Steam X RUN: d772ee30-258e-4650-9313-9e45e5cd4dac